bitfinex-derivatives/quotes_BTCF0:USTF0_20260107
["timestamp","ask_amount","ask_price","bid_price","bid_amount"]
[1767800211597,0.093,91541.0,91513.0,0.05946627]
[1767800211788,0.010933,91545.0,91513.0,0.05946627]
[1767800212116,0.05841603,91550.0,91518.0,0.010936]
[1767800212288,0.010934,91536.0,91515.0,0.05946627]
[1767800212493,0.010933,91540.0,91519.0,0.093]
[1767800212888,0.010933,91543.0,91519.0,0.093]
[1767800213187,0.093,91549.0,91523.0,0.05946627]
[1767800213188,0.010933,91547.0,91523.0,0.05946627]
[1767800213498,0.093,91547.0,91523.0,0.05946627]
[1767800214001,0.093,91547.0,91516.0,0.093]
[1767800214002,0.010934,91534.0,91516.0,0.093]
[1767800214302,0.010934,91532.0,91516.0,0.093]
[1767800214793,0.010884,91532.0,91516.0,0.093]
[1767800214993,0.010935,91529.0,91511.0,0.05946627]
[1767800215218,0.010935,91529.0,91512.0,0.093]
[1767800215697,0.010934,91532.0,91512.0,0.15246627]
[1767800216397,0.093,91547.0,91512.0,0.15246627]
[1767800216398,0.010935,91530.0,91515.0,0.05946627]
[1767800216789,0.010934,91532.0,91515.0,0.05946627]
[1767800216989,0.010935,91530.0,91515.0,0.05946627]
[1767800217697,0.010935,91530.0,91512.0,0.093]
[1767800218198,0.06934903,91543.0,91515.0,0.010936]
[1767800218499,0.010934,91531.0,91515.0,0.05946627]
[1767800218696,0.010935,91529.0,91515.0,0.05946627]
[1767800219093,0.093,91547.0,91516.0,0.07040227]
[1767800219295,0.010935,91529.0,91516.0,0.05946627]
[1767800219494,0.010935,91530.0,91516.0,0.05946627]
[1767800219890,0.010935,91530.0,91514.0,0.093]
[1767800219891,0.010934,91535.0,91517.0,0.07040227]
[1767800220196,0.1147594,91547.0,91517.0,0.05946627]
[1767800220197,0.093,91547.0,91517.0,0.05946627]
[1767800220387,0.16815081,91570.0,91525.0,0.05946627]
[1767800220388,0.093,91554.0,91525.0,0.05946627]
[1767800220587,0.103932,91554.0,91537.0,0.010934]
[1767800220798,0.093,91565.0,91539.0,0.05946627]
[1767800221003,0.093,91565.0,91509.0,0.010937]
[1767800221004,0.05841603,91543.0,91511.0,0.05946627]
[1767800221490,0.05841603,91543.0,91522.0,0.010935]
[1767800221491,0.010933,91542.0,91522.0,0.010935]
[1767800221698,0.09296,91546.0,91522.0,0.010935]
[1767800221699,0.010933,91540.0,91522.0,0.06267988]
[1767800221896,0.0536723,91552.0,91524.0,0.05261477]
[1767800221897,0.010933,91547.0,91524.0,0.05261477]
[1767800222096,0.09296,91556.0,91531.0,0.05261477]
[1767800222301,0.05563005,91560.0,91526.0,0.05261477]
[1767800222601,0.05563005,91560.0,91523.0,0.0317386]
[1767800222602,0.05563005,91552.0,91529.0,0.010935]
[1767800222797,0.09296,91553.0,91529.0,0.05261477]
[1767800223000,0.05563005,91560.0,91541.0,0.010933]
[1767800223001,0.0131154,91559.0,91541.0,0.010933]
[1767800223296,0.010931,91557.0,91540.0,0.06354777]
[1767800223495,0.010931,91558.0,91540.0,0.06354777]
[1767800223699,0.0021844,91559.0,91542.0,0.05261477]
[1767800223900,0.0021844,91559.0,91538.0,0.1138844]
[1767800223901,0.04799292,91570.0,91551.0,0.010932]
[1767800224098,0.01093,91567.0,91549.0,0.010932]
[1767800224306,0.010931,91560.0,91546.0,0.09296]
[1767800224508,0.010931,91556.0,91540.0,0.05261477]
[1767800224706,0.010931,91558.0,91540.0,0.06354777]
[1767800224893,0.010931,91558.0,91541.0,0.09296]
[1767800225093,0.010931,91556.0,91541.0,0.09296]
[1767800225289,0.010931,91559.0,91542.0,0.09296]
[1767800225590,0.03706292,91570.0,91547.0,0.05261477]
[1767800225795,0.04799292,91570.0,91552.0,0.010932]
[1767800226004,0.03706292,91570.0,91554.0,0.05261477]
[1767800226396,0.05563005,91567.0,91540.0,0.010933]
[1767800226699,0.02083754,91569.0,91541.0,0.09296]
[1767800226903,0.010931,91560.0,91542.0,0.09296]
[1767800227101,0.02083754,91569.0,91538.0,0.05261477]
[1767800227102,0.05563005,91568.0,91538.0,0.05261477]
[1767800227302,0.05563005,91568.0,91536.0,0.01998841]
[1767800227303,0.010932,91551.0,91539.0,0.09296]
[1767800227504,0.01093,91567.0,91530.0,0.05261477]
[1767800227505,0.010932,91549.0,91530.0,0.05261477]
[1767800227801,0.010932,91554.0,91535.0,0.010934]
[1767800228103,0.010931,91559.0,91532.0,0.05261477]
[1767800228298,0.010932,91550.0,91531.0,0.09296]
[1767800228804,0.010932,91550.0,91531.0,0.14557477]
[1767800229002,0.010932,91554.0,91533.0,0.010934]
[1767800229218,0.010882,91552.0,91533.0,0.010934]
[1767800229720,0.010932,91550.0,91531.0,0.14557477]
[1767800229907,0.09296,91562.0,91526.0,0.09296]
[1767800229908,0.010933,91541.0,91526.0,0.09296]
[1767800230198,0.010932,91550.0,91526.0,0.09296]
[1767800230399,0.010932,91550.0,91531.0,0.010934]
[1767800230806,0.010932,91555.0,91534.0,0.06354877]
[1767800230997,0.010932,91555.0,91536.0,0.010934]
[1767800231205,0.01093,91569.0,91533.0,0.01867595]
[1767800231206,0.07646759,91558.0,91533.0,0.010934]
[1767800231498,0.010932,91555.0,91536.0,0.09296]
[1767800232218,0.14859005,91564.0,91536.0,0.09296]
[1767800232598,0.07646759,91562.0,91536.0,0.09296]
[1767800232793,0.05563005,91561.0,91536.0,0.09296]
[1767800232996,0.010932,91554.0,91536.0,0.09296]
[1767800233199,0.05563005,91561.0,91536.0,0.09296]
[1767800233407,0.010932,91550.0,91536.0,0.09296]
[1767800233604,0.010932,91553.0,91536.0,0.09296]
[1767800234406,0.010931,91556.0,91537.0,0.010934]
[1767800234908,0.05563005,91563.0,91536.0,0.09296]
[1767800234909,0.010932,91554.0,91536.0,0.09296]
[1767800235110,0.010932,91552.0,91536.0,0.09296]
[1767800235290,0.010932,91552.0,91531.0,0.05261477]
[1767800235291,0.05563005,91552.0,91531.0,0.09296]
[1767800235499,0.02083754,91553.0,91515.0,0.05261477]
[1767800235500,0.02083754,91544.0,91515.0,0.05261477]
[1767800235804,0.05563005,91543.0,91516.0,0.09296]
[1767800235997,0.010934,91538.0,91519.0,0.010936]
[1767800236207,0.010934,91537.0,91518.0,0.010936]
[1767800236407,0.010934,91536.0,91515.0,0.09296]
[1767800236701,0.02083754,91525.0,91498.0,0.010938]
[1767800236910,0.010934,91533.0,91496.0,0.09296]
[1767800236911,0.010936,91516.0,91496.0,0.09296]
[1767800237100,0.010936,91516.0,91497.0,0.010938]
[1767800237293,0.09296,91522.0,91492.0,0.05261477]
[1767800237294,0.010937,91511.0,91492.0,0.05261477]
[1767800237708,0.010937,91513.0,91492.0,0.05261477]
[1767800238006,0.05563005,91534.0,91499.0,0.0548006]
[1767800238305,0.010935,91526.0,91499.0,0.0548006]
[1767800238505,0.05563005,91531.0,91499.0,0.0548006]
[1767800238506,0.010935,91529.0,91509.0,0.010937]
[1767800238701,0.010935,91527.0,91506.0,0.010937]
[1767800238907,0.010935,91525.0,91506.0,0.010937]
[1767800239202,0.010935,91525.0,91503.0,0.010938]
[1767800239395,0.010935,91523.0,91503.0,0.010938]
[1767800239601,0.09296,91522.0,91503.0,0.010938]
[1767800239804,0.010936,91521.0,91500.0,0.010938]
[1767800241108,0.14859005,91522.0,91499.0,0.00218583]
[1767800241307,0.010937,91513.0,91499.0,0.00218583]
[1767800241911,0.010936,91516.0,91499.0,0.00218583]
[1767800242208,0.010936,91519.0,91499.0,0.00218583]
[1767800242408,0.010936,91515.0,91499.0,0.00218583]
[1767800242612,0.00875089,91515.0,91499.0,0.00218583]
[1767800243004,0.010937,91513.0,91499.0,0.00218583]
[1767800243312,0.07646759,91520.0,91488.0,0.00013926]
[1767800243313,0.05563005,91511.0,91488.0,0.00013926]
[1767800243514,0.14859005,91511.0,91488.0,0.00013926]
[1767800243710,0.010937,91507.0,91488.0,0.00013926]
[1767800245305,0.05563005,91485.0,91469.0,0.00218655]
[1767800245504,0.00013931,91484.0,91469.0,0.00218655]
[1767800246110,0.00013931,91484.0,91455.0,0.09296]
[1767800246111,0.05563005,91470.0,91446.0,0.08791221]
[1767800246305,0.010943,91461.0,91446.0,0.08791221]
[1767800246612,0.06657305,91459.0,91429.0,0.05261477]
[1767800246810,0.093,91458.0,91439.0,0.05261477]
[1767800247105,0.010944,91450.0,91432.0,0.07000918]
[1767800247309,0.010945,91444.0,91422.0,7.776e-05]
[1767800247508,0.00014025,91443.0,91422.0,7.776e-05]
[1767800247712,0.00014025,91443.0,91422.0,0.01102476]
[1767800247907,0.00014025,91443.0,91422.0,7.776e-05]
[1767800248312,0.010945,91441.0,91422.0,7.776e-05]
[1767800248614,0.010943,91459.0,91412.0,0.01172473]
[1767800248615,0.093,91457.0,91440.0,0.010945]
[1767800248804,0.093,91456.0,91428.0,0.093]
[1767800249005,0.14863005,91455.0,91428.0,0.103947]
[1767800249207,0.093,91454.0,91428.0,0.103947]
[1767800249406,0.010944,91450.0,91428.0,0.093]
[1767800249611,0.010945,91445.0,91419.0,0.093]
[1767800249813,0.093,91444.0,91419.0,0.010948]
[1767800250114,0.093,91444.0,91422.0,0.010947]
[1767800250314,0.093,91444.0,91418.0,0.010948]
[1767800250515,0.093,91444.0,91421.0,0.010947]
[1767800250706,0.093,91444.0,91417.0,0.05261477]
[1767800250707,0.103945,91444.0,91417.0,0.06356277]
[1767800251104,0.010944,91448.0,91420.0,0.010948]
[1767800251416,0.010945,91441.0,91417.0,0.05261477]
[1767800251714,9.762e-05,91440.0,91413.0,0.010948]
[1767800251905,0.010945,91439.0,91416.0,0.010948]
[1767800252218,9.762e-05,91440.0,91413.0,0.05104255]
[1767800252411,9.762e-05,91440.0,91422.0,0.05104255]
[1767800252412,0.093,91439.0,91422.0,0.05104255]
[1767800252608,9.762e-05,91440.0,91423.0,0.05104255]
[1767800252911,0.14412242,91446.0,91418.0,0.45104255]
[1767800253111,0.05112242,91445.0,91418.0,0.05104255]
[1767800253310,0.093,91444.0,91418.0,0.05104255]
[1767800254018,0.093,91444.0,91420.0,0.05104255]
[1767800254213,0.093,91444.0,91424.0,0.010947]
[1767800254421,0.093,91444.0,91421.0,0.010948]
[1767800254612,0.093,91444.0,91420.0,0.05104255]
[1767800254813,0.093,91444.0,91434.0,0.010946]
[1767800255009,0.093,91444.0,91424.0,0.05104255]
[1767800255210,0.0905,91444.0,91426.0,0.010947]
[1767800255410,0.0905,91444.0,91431.0,0.010946]
[1767800255913,0.09304,91444.0,91428.0,0.010947]
[1767800256114,0.09304,91444.0,91411.0,0.05104255]
[1767800256309,0.09304,91444.0,91415.0,0.05104255]
[1767800256310,0.010945,91443.0,91415.0,0.05104255]
[1767800256518,0.05112242,91443.0,91415.0,0.05104255]
[1767800256720,0.09304,91444.0,91424.0,0.010947]
[1767800256919,0.14416242,91444.0,91415.0,0.05104255]
[1767800257116,0.14416242,91444.0,91422.0,0.010947]
[1767800257818,0.010945,91441.0,91419.0,0.010948]
[1767800258014,0.14416242,91444.0,91415.0,0.05104255]
[1767800258221,0.010946,91435.0,91411.0,0.010949]
[1767800258416,0.05112242,91449.0,91414.0,0.05104255]
[1767800258619,0.09304,91448.0,91428.0,0.010947]
[1767800258810,0.09304,91447.0,91434.0,0.010946]
[1767800259120,0.06206542,91457.0,91433.0,0.010946]
[1767800259332,0.010944,91455.0,91433.0,0.010946]
[1767800259515,0.05112242,91457.0,91435.0,0.010946]
[1767800259715,0.103983,91456.0,91435.0,0.010946]
[1767800259910,0.010944,91454.0,91433.0,0.010946]
[1767800260417,0.09304,91456.0,91424.0,0.05104255]
[1767800260626,0.010943,91455.0,91424.0,0.05104255]
[1767800260823,0.09304,91456.0,91425.0,0.010947]
[1767800261022,0.05112242,91469.0,91445.0,0.010945]
[1767800261222,0.010942,91464.0,91442.0,0.010945]
[1767800261416,0.07128407,91465.0,91439.0,0.010945]
[1767800261618,0.05112242,91462.0,91439.0,0.010945]
[1767800262230,0.010943,91461.0,91439.0,0.010945]
[1767800262520,0.06206542,91462.0,91441.0,0.010945]
[1767800262720,0.09304,91468.0,91433.0,0.09304]
[1767800262721,0.02016165,91459.0,91435.0,0.010946]
[1767800262925,0.05112242,91451.0,91433.0,0.09304]
[1767800263122,0.14416242,91451.0,91433.0,0.09304]
[1767800263320,0.15510642,91451.0,91433.0,0.09304]
[1767800263722,0.14416242,91451.0,91434.0,0.010946]
[1767800263925,0.09304,91451.0,91427.0,0.05104255]
[1767800264519,0.05112242,91460.0,91444.0,0.010945]
[1767800264718,0.09304,91459.0,91434.0,0.05104255]
[1767800265022,0.010943,91457.0,91437.0,0.010946]
[1767800265226,0.09304,91456.0,91440.0,0.010945]
[1767800265428,0.09304,91456.0,91437.0,0.010946]
[1767800266322,0.09304,91456.0,91442.0,0.010945]
[1767800266518,0.09304,91456.0,91444.0,0.010945]
[1767800266718,0.09304,91456.0,91438.0,0.010945]
[1767800267429,0.02016165,91459.0,91438.0,0.010945]
[1767800267430,0.09304,91455.0,91438.0,0.010945]
[1767800268226,0.09304,91455.0,91440.0,0.010945]
[1767800268429,0.09304,91455.0,91432.0,0.05104255]
[1767800268430,0.02016165,91459.0,91443.0,0.010945]
[1767800268621,0.09304,91458.0,91443.0,0.010945]
[1767800268929,0.07128407,91455.0,91437.0,0.010946]
[1767800269738,0.07128407,91455.0,91439.0,0.010945]
[1767800269932,0.05112242,91455.0,91439.0,0.010945]
[1767800270226,0.03110465,91461.0,91441.0,0.010945]
[1767800270418,0.03110365,91469.0,91440.0,0.05104255]
[1767800270624,0.010942,91467.0,91447.0,0.010944]
[1767800271333,0.010942,91467.0,91440.0,0.05104255]
[1767800271334,0.09304,91466.0,91452.0,0.010944]
[1767800271829,0.09304,91466.0,91446.0,0.010944]
[1767800272026,0.09304,91466.0,91448.0,0.010944]
[1767800272415,0.010942,91465.0,91445.0,0.010945]
[1767800272619,0.07128407,91457.0,91439.0,0.010945]
[1767800272820,0.010943,91456.0,91438.0,0.09304]
[1767800273427,0.08222707,91457.0,91438.0,0.09304]
[1767800273824,0.07128407,91454.0,91426.0,0.05104255]
[1767800274024,0.010945,91444.0,91426.0,0.09304]
[1767800274532,0.010945,91442.0,91426.0,0.09304]
[1767800274826,0.08222907,91442.0,91426.0,0.09304]
[1767800275025,0.08222907,91442.0,91422.0,0.010947]
[1767800275026,0.07128407,91439.0,91417.0,0.09304]
[1767800275220,0.07128407,91439.0,91421.0,0.010948]
[1767800275420,0.09304,91443.0,91417.0,0.09304]
[1767800275421,0.07128407,91436.0,91417.0,0.09304]
[1767800275620,0.07128407,91435.0,91410.0,0.09304]
[1767800276330,0.08223007,91435.0,91413.0,0.010948]
[1767800277132,0.07128407,91435.0,91417.0,0.010948]
[1767800277533,0.08223007,91435.0,91414.0,0.010948]
[1767800278030,0.07128407,91435.0,91411.0,0.010949]
[1767800278333,0.010946,91434.0,91413.0,0.010948]
[1767800278531,0.010946,91432.0,91413.0,0.010948]
[1767800278732,0.08223007,91435.0,91413.0,0.010948]
[1767800279226,0.08223007,91435.0,91415.0,0.010948]
[1767800279423,0.07128407,91435.0,91415.0,0.010948]
[1767800279624,0.07128407,91435.0,91410.0,0.09304]
[1767800279625,0.07128407,91435.0,91411.0,0.05104255]
[1767800279816,0.07128407,91435.0,91417.0,0.010948]
[1767800280229,0.02016165,91440.0,91411.0,0.05104255]
[1767800280435,0.09304,91439.0,91419.0,0.010948]
[1767800280825,0.09304,91439.0,91421.0,0.010947]
[1767800281025,0.09304,91439.0,91425.0,0.010947]
[1767800281225,0.09304,91439.0,91422.0,0.010947]
[1767800281434,0.01902001,91453.0,91422.0,0.04874692]
[1767800281634,0.103983,91455.0,91435.0,0.010946]
[1767800281931,0.09304,91460.0,91445.0,0.010945]
[1767800282120,0.01849686,91456.0,91436.0,0.010946]
[1767800282328,0.06795623,91455.0,91438.0,0.010945]
[1767800282627,0.06795623,91455.0,91441.0,0.010945]
[1767800282828,0.06795623,91455.0,91434.0,0.09304]
[1767800283035,0.010944,91451.0,91434.0,0.09304]
[1767800283228,0.010944,91451.0,91430.0,0.010946]
[1767800283229,0.06795623,91446.0,91430.0,0.010946]
[1767800283428,0.06795623,91446.0,91426.0,0.09304]
[1767800283732,0.04945937,91446.0,91426.0,0.09304]
[1767800283938,0.010945,91442.0,91426.0,0.09304]
[1767800284327,0.06040437,91442.0,91426.0,0.09304]
[1767800284530,0.06795623,91438.0,91419.0,0.010948]
[1767800284728,0.06795623,91446.0,91418.0,0.09304]
[1767800285040,0.010944,91453.0,91418.0,0.09304]
[1767800285041,0.01849686,91453.0,91428.0,0.04784633]
[1767800285240,0.09304,91459.0,91448.0,0.010944]
[1767800285425,0.09304,91463.0,91452.0,0.010944]
[1767800285625,0.09304,91463.0,91447.0,0.010944]
[1767800285832,0.01849686,91461.0,91438.0,0.09304]
[1767800286037,0.06795623,91456.0,91438.0,0.09304]
[1767800286739,0.06795623,91456.0,91439.0,0.010945]
[1767800287038,0.06795623,91456.0,91438.0,0.103985]
[1767800287230,0.06795623,91456.0,91440.0,0.010945]
[1767800287431,0.09304,91463.0,91438.0,0.14088633]
[1767800287627,0.09304,91463.0,91439.0,0.04784633]
[1767800288032,0.09304,91463.0,91443.0,0.010945]
[1767800289241,0.0959202,91489.0,91445.0,0.04784633]
[1767800289537,0.93072,91503.0,91470.0,0.13065244]
[1767800289538,0.01849686,91495.0,91470.0,0.13065244]
[1767800289743,0.06795623,91502.0,91477.0,0.010941]
[1767800289943,0.06795623,91500.0,91475.0,0.010941]
[1767800290132,0.04945937,91499.0,91475.0,0.010941]
[1767800290331,0.06795623,91497.0,91475.0,0.010941]
[1767800290943,0.06795623,91488.0,91469.0,0.09304]
[1767800291534,0.06795623,91486.0,91469.0,0.09304]
[1767800291735,0.04945937,91481.0,91469.0,0.09304]
[1767800291939,0.09304,91488.0,91458.0,0.103983]
[1767800291940,0.06795623,91478.0,91458.0,0.103983]
[1767800292331,0.13065244,91510.0,91458.0,0.09304]
[1767800292332,0.06795623,91477.0,91458.0,0.09304]
[1767800292539,0.06795623,91476.0,91458.0,0.09304]
[1767800292735,0.06795623,91476.0,91456.0,0.010943]
[1767800293447,0.06795623,91494.0,91465.0,0.04784633]
[1767800293649,0.09304,91493.0,91465.0,0.04784633]
[1767800293835,0.01849686,91490.0,91465.0,0.04784633]
[1767800294040,0.06795623,91489.0,91466.0,0.010942]
[1767800294545,0.01849686,91486.0,91462.0,0.010943]
[1767800294849,0.16099623,91485.0,91462.0,0.010943]
[1767800295438,0.06795623,91484.0,91462.0,0.010943]
[1767800296235,0.04945937,91477.0,91461.0,0.09304]
[1767800296440,0.06795623,91477.0,91453.0,0.09304]
[1767800296635,0.06795623,91477.0,91460.0,0.010943]
[1767800296939,0.06795623,91477.0,91456.0,0.010943]
[1767800297451,0.06795623,91475.0,91456.0,0.010943]
[1767800297951,0.16099623,91475.0,91456.0,0.010943]
[1767800298347,0.06795623,91472.0,91456.0,0.010943]
[1767800299646,0.06795623,91471.0,91453.0,0.09304]
[1767800299846,0.06795623,91471.0,91454.0,0.010944]
[1767800300958,0.06795623,91471.0,91453.0,0.103984]
[1767800301349,0.06795623,91471.0,91455.0,0.010943]
[1767800301659,0.06795623,91471.0,91448.0,0.06022571]
[1767800301846,0.06795623,91471.0,91452.0,0.010944]
[1767800302046,0.06795623,91471.0,91451.0,0.010944]
[1767800302360,0.06795623,91471.0,91448.0,0.010944]
[1767800302547,0.01849686,91458.0,91442.0,0.010945]
[1767800302747,0.01849686,91455.0,91435.0,0.09304]
[1767800302947,0.04945937,91456.0,91435.0,0.09304]
[1767800302948,0.01849686,91469.0,91445.0,0.04784633]
[1767800303147,0.09304,91468.0,91454.0,0.010944]
[1767800303354,0.09304,91468.0,91453.0,0.010944]
[1767800303857,0.06795623,91472.0,91445.0,0.04784633]
[1767800304051,0.09304,91471.0,91452.0,0.010944]
[1767800304646,0.06795623,91472.0,91447.0,0.14088633]
[1767800304853,0.09304,91471.0,91454.0,0.010944]
[1767800305250,0.09304,91471.0,91448.0,0.010944]
[1767800305453,0.06795623,91465.0,91448.0,0.010944]
[1767800305660,0.06795623,91465.0,91432.0,0.01128989]
[1767800305661,0.07889923,91457.0,91439.0,0.09304]
[1767800305962,0.06795623,91450.0,91432.0,0.09304]
[1767800306156,0.09304,91457.0,91432.0,0.09304]
[1767800306458,0.09304,91457.0,91433.0,0.010946]
[1767800306763,0.09304,91457.0,91437.0,0.010946]
[1767800307657,0.010943,91455.0,91434.0,0.010946]
[1767800307860,0.06795623,91458.0,91432.0,0.09304]
[1767800307861,0.06180066,91475.0,91446.0,0.04607171]
[1767800308051,0.010942,91471.0,91447.0,0.13911171]
[1767800308253,0.06180066,91466.0,91447.0,0.09304]
[1767800308463,0.06180066,91458.0,91431.0,0.04607171]
[1767800308652,0.06180066,91457.0,91432.0,0.09304]
[1767800308857,0.01629265,91450.0,91432.0,0.09304]
[1767800309158,0.06180066,91442.0,91421.0,0.09304]
[1767800309350,0.06180066,91442.0,91424.0,0.010947]
[1767800309550,0.06180066,91441.0,91421.0,0.09304]
[1767800309747,0.06180066,91441.0,91404.0,0.07835623]
[1767800309748,0.06180066,91429.0,91409.0,0.01313698]
[1767800309954,0.06180066,91428.0,91409.0,0.10617698]
[1767800310155,0.06180066,91426.0,91409.0,0.00218798]
[1767800310761,0.06180066,91426.0,91409.0,0.01313698]
[1767800312058,0.06180066,91426.0,91409.0,0.00218798]
[1767800312263,7.9e-07,91395.0,91394.0,0.103991]
[1767800312463,7.9e-07,91395.0,91394.0,0.09304]
[1767800312759,0.06474599,91413.0,91394.0,0.103991]
[1767800313359,0.06474599,91413.0,91394.0,0.09304]
[1767800313553,0.04779124,91413.0,91394.0,0.09304]
[1767800313864,0.13065244,91440.0,91394.0,0.09304]
[1767800313865,0.09304,91417.0,91402.0,0.01095]
[1767800314462,0.09304,91417.0,91399.0,0.01095]
[1767800315963,0.04779124,91422.0,91398.0,0.04837369]
[1767800316260,0.09304,91422.0,91405.0,0.010949]
[1767800317053,0.09304,91422.0,91407.0,0.010949]
[1767800317960,0.09304,91422.0,91400.0,0.04837369]
[1767800318265,0.31172,91439.0,91410.0,0.13065244]
[1767800318266,0.04779124,91439.0,91410.0,0.13065244]
[1767800318453,0.09304,91438.0,91415.0,0.010948]
[1767800318653,0.103986,91438.0,91415.0,0.010948]
[1767800319160,0.09304,91438.0,91411.0,0.09304]
[1767800319358,0.09304,91438.0,91415.0,0.05932169]
[1767800320460,0.09304,91438.0,91417.0,0.010948]
[1767800321058,0.09304,91438.0,91415.0,0.04837369]
[1767800321562,0.06474599,91433.0,91411.0,0.09304]
[1767800321864,0.10999475,91438.0,91404.0,0.09308]
[1767800321865,0.06474599,91425.0,91404.0,0.09308]
[1767800322065,0.04779124,91424.0,91404.0,0.09308]
[1767800322274,0.04779124,91418.0,91404.0,0.09308]
[1767800322450,0.05873924,91418.0,91404.0,0.09308]
[1767800322761,0.04779124,91417.0,91404.0,0.09308]
[1767800323164,0.04779124,91417.0,91397.0,0.09308]
[1767800323362,0.05873924,91417.0,91397.0,0.09308]
[1767800324261,0.010949,91413.0,91397.0,0.09308]
[1767800324562,0.09308,91428.0,91397.0,0.09308]
[1767800324563,0.05873924,91414.0,91397.0,0.09308]
[1767800324858,0.04779124,91414.0,91397.0,0.09308]
[1767800325066,0.010948,91415.0,91397.0,0.09308]
[1767800325368,0.104028,91418.0,91397.0,0.10403]
[1767800325561,0.010948,91414.0,91397.0,0.09308]
[1767800326055,0.06474599,91420.0,91397.0,0.09308]
[1767800326256,0.010949,91413.0,91397.0,0.09308]
[1767800326964,0.010948,91416.0,91397.0,0.10403]
[1767800327162,0.01914201,91439.0,91408.0,0.06546726]
[1767800327360,0.01914201,91439.0,91412.0,0.04837369]
[1767800327361,0.04779124,91438.0,91412.0,0.04837369]
[1767800327552,0.010947,91428.0,91410.0,0.09308]
[1767800328170,0.04779124,91435.0,91411.0,0.010949]
[1767800328470,0.010947,91428.0,91410.0,0.09308]
[1767800328868,0.010947,91426.0,91410.0,0.09308]
[1767800329068,0.010947,91424.0,91410.0,0.09308]
[1767800329465,0.06474599,91422.0,91398.0,0.04837369]
[1767800329659,0.010948,91416.0,91399.0,0.09308]
[1767800329860,0.010948,91419.0,91400.0,0.09308]
[1767800330064,0.04779124,91417.0,91400.0,0.09308]
[1767800330370,0.01095,91402.0,91391.0,0.09308]
[1767800330557,0.04779124,91404.0,91391.0,0.09308]
[1767800330764,0.01095,91404.0,91391.0,0.09308]
[1767800330963,0.010949,91407.0,91391.0,0.09308]
[1767800331266,0.010948,91419.0,91391.0,0.09308]
[1767800331267,0.010949,91405.0,91392.0,0.06546726]
[1767800331467,0.04779124,91438.0,91414.0,0.04837369]
[1767800331665,0.11003475,91447.0,91419.0,0.010948]
[1767800331861,0.11003475,91447.0,91422.0,0.010947]
[1767800332065,0.010945,91444.0,91418.0,0.05932169]
[1767800332270,0.010945,91441.0,91418.0,0.04837369]
[1767800332673,0.11003475,91447.0,91418.0,0.04837369]
[1767800332874,0.010946,91436.0,91418.0,0.04837369]
[1767800333168,0.010945,91440.0,91418.0,0.04837369]
[1767800334175,0.01695475,91395.0,91371.0,0.07847684]
[1767800334380,0.04779124,91385.0,91356.0,0.01159829]
[1767800334556,0.04779124,91385.0,91347.0,0.09308]
[1767800334756,0.09308,91390.0,91357.0,0.52765803]
[1767800334757,0.01695475,91382.0,91357.0,0.52765803]
[1767800334965,0.04779124,91364.0,91345.0,0.52765803]
[1767800335166,0.01695475,91348.0,91332.0,0.01169838]
[1767800335366,0.01695475,91343.0,91313.0,0.09308]
[1767800335564,0.09308,91356.0,91313.0,0.09308]
[1767800335565,0.06474599,91334.0,91313.0,0.09308]
[1767800335874,0.04779124,91330.0,91302.0,7.678e-05]
[1767800336066,0.04779124,91330.0,91303.0,0.52765803]
[1767800336264,0.04779124,91320.0,91302.0,7.678e-05]
[1767800336462,0.04779124,91318.0,91283.0,0.09308]
[1767800336658,0.04779124,91318.0,91282.0,0.04837369]
[1767800336659,0.04779124,91306.0,91267.0,0.01709357]
[1767800336863,0.04779124,91296.0,91267.0,0.010966]
[1767800337062,0.04779124,91294.0,91264.0,0.09308]
[1767800337464,0.010963,91290.0,91269.0,0.04837369]
[1767800337678,0.010963,91290.0,91264.0,0.09308]
[1767800337866,0.010964,91288.0,91260.0,0.04837369]
[1767800338068,0.04779124,91290.0,91261.0,0.09308]
[1767800338467,0.00014003,91293.0,91262.0,0.01709357]
[1767800338669,0.00014003,91293.0,91261.0,0.09308]
[1767800338670,0.00014003,91293.0,91263.0,0.06546726]
[1767800338973,0.01110303,91293.0,91268.0,0.04837369]
[1767800339172,0.05875424,91291.0,91261.0,0.09308]
[1767800339673,0.01695475,91281.0,91259.0,5.8e-07]
[1767800339871,0.04560469,91277.0,91259.0,5.8e-07]
[1767800340075,0.01695475,91273.0,91259.0,5.8e-07]
[1767800340475,0.01695475,91263.0,91229.0,0.05056599]
[1767800340676,0.01695475,91263.0,91234.0,0.01097]
[1767800340972,0.010966,91268.0,91230.0,0.15260302]
[1767800341179,0.010967,91263.0,91231.0,0.08229512]
[1767800341571,0.010967,91258.0,91231.0,0.08229512]
[1767800341865,0.010967,91258.0,91229.0,0.0021923]
[1767800341866,0.14683298,91257.0,91229.0,0.0021923]
[1767800342065,0.00013842,91257.0,91231.0,0.07987258]
[1767800342273,0.07152253,91250.0,91229.0,0.0021923]
[1767800342476,0.08614003,91233.0,91200.0,0.07987258]
[1767800342674,0.08614003,91231.0,91207.0,0.010973]
[1767800342872,0.08614003,91243.0,91201.0,0.14294183]
[1767800343073,0.010967,91261.0,91225.0,0.06306925]
[1767800343273,0.010962,91299.0,91200.0,0.4]
[1767800343274,0.010964,91286.0,91251.0,0.06306925]
[1767800343580,0.15383648,91285.0,91244.0,0.07987258]
[1767800343876,0.15383648,91285.0,91247.0,0.07987258]
[1767800344076,0.09328195,91285.0,91261.0,0.07987258]
[1767800344277,0.09328195,91285.0,91245.0,0.09316]
[1767800344278,0.06055453,91284.0,91245.0,0.09316]
[1767800344480,0.09328195,91285.0,91240.0,0.07987258]
[1767800344481,0.010967,91261.0,91240.0,0.07987258]
[1767800344790,0.10424595,91285.0,91209.0,0.14294183]
[1767800344791,0.07152253,91247.0,91209.0,0.14294183]
[1767800344975,0.08614003,91240.0,91211.0,0.010973]
[1767800345172,0.00013205,91246.0,91215.0,0.07987258]
[1767800345373,0.010969,91245.0,91219.0,0.07987258]
[1767800345772,0.09710903,91245.0,91210.0,0.104133]
[1767800345972,0.08614003,91245.0,91213.0,0.09084458]
[1767800346184,0.08614003,91245.0,91213.0,0.07987258]
[1767800346374,0.010969,91244.0,91214.0,0.07987258]